Cogmind - Beta 16 @@@ ROGUE MODE // 2025.11.22 @ 02:46:54 Player: VmFycnk Result: Destroyed by S-10 Pest with Light Assault Rifle Performance ------------- Evolutions (2) 1000 Regions Visited (3) 600 Robots Destroyed (96) 480 Value Destroyed (2657) 2657 Prototype IDs (7) 140 Alien Tech Used (0) 0 Bonus (77) 77 TOTAL SCORE: 4954 Bonus ------- High Alert Combat Kills 77 Cogmind --------- Core Integrity 0/550 Matter 177/300 Energy 56/100 System Corruption 0% Temperature Cool (45) Movement Core (750) Ox14 Location -8/Materials Parts ------- > --- POWER (1) -------- (None) > --- PROPULSION (2) --- (None) > --- UTILITY (6) ------ High-capacity Storage Unit Visual Processing Unit Signal Interpreter > --- WEAPON (2) ------- Heavy Flail > --- INVENTORY (20) --- Improved Titanium Leg Improved Titanium Leg Heavy Laser Rocket Launcher Heavy Missile Launcher Heavy Missile Launcher Datajack Peak State ------------ > --- POWER ------------ Light Nuclear Core > --- PROPULSION ------- Improved Titanium Leg Improved Titanium Leg > --- UTILITY ---------- High-capacity Storage Unit Trap Scanner Visual Processing Unit Signal Interpreter Core Shielding Hardlight Generator > --- WEAPON ----------- Heavy Laser Heavy Laser > --- INVENTORY -------- Light Nuclear Core Improved Titanium Leg Improved Titanium Leg Beam Rifle Rocket Launcher Heavy Missile Launcher Heavy Missile Launcher Datajack Heavy Flail [Rating: 32] Favorites ----------- Power Light Nuclear Core Engine Ion Engine Power Core Light Nuclear Core Propulsion Light Treads Treads Light Treads Leg Improved Titanium Leg Wheel Armored Wheel Utility Signal Interpreter Device Shield Generator Storage Large Storage Unit Processor Signal Interpreter Protection Core Shielding Weapon Improved Medium Laser Energy Gun Improved Medium Laser Ballistic Gun Heavy Assault Rifle Launcher Improved Grenade Launcher Impact Weapon Hammer Build | -11 -10 -9 -8 ------- Run | Yrd Mat Mat Mat Slots Evolved 4 | . . 2 2 Power . | . . . . Propulsion . | . . . . Utility 4 | . . 2 2 Weapon . | . . . . Parts Attached 62 | 6 7 25 24 Power 14 | 1 2 8 3 Engine 7 | 1 1 4 1 Core 7 | . 1 4 2 Reactor . | . . . . Propulsion 15 | 2 2 5 6 Treads 7 | 2 . 5 . Leg 6 | . . . 6 Wheel 2 | . 2 . . Hover . | . . . . Flight . | . . . . Utility 12 | 1 3 4 4 Device 3 | . . 1 2 Storage 3 | 1 1 . 1 Processor 2 | . 1 1 . Hackware . | . . . . Protection 4 | . 1 2 1 Artifact . | . . . . Weapon 21 | 2 . 8 11 Energy Gun 8 | . . 3 5 Energy Cannon . | . . . . Ballistic Gun 6 | 2 . 3 1 Ballistic Cannon . | . . . . Launcher 5 | . . 1 4 Special Weapon . | . . . . Impact Weapon 2 | . . 1 1 Slashing Weapon . | . . . . Piercing Weapon . | . . . . Special Melee Weapon . | . . . . Unidentified Prototypes . | . . . . Parts Lost 25 | . . 8 17 Power 6 | . . 2 4 Propulsion 5 | . . 1 4 Utility 6 | . . 3 3 Weapon 8 | . . 2 6 Highest Loss Streak 6 | . . 1 6 To Critical Strikes . | . . . . Average Backups 8 | 1 3 9 9 Power . | . . . . Propulsion . | . . . 1 Utility . | . 1 . . Weapon 5 | . 1 6 6 Tool/Special . | . . . . Unused Backups 7 | . . 2 5 Power . | . . . . Propulsion 2 | . . . 2 Utility . | . . . . Weapon 4 | . . 2 2 Tool/Special 1 | . . . 1 Average Slot Usage (%) 92 | . 97 96 78 Engine 2 | . 10 . . Core 8 | . 3 10 6 Treads 14 | . 20 16 6 Leg 2 | . . . 10 Wheel 3 | . 7 4 . Device 3 | . . 4 3 Storage 10 | . 14 11 9 Processor 18 | . 7 22 18 Protection 5 | . 4 4 6 Energy Gun 12 | . . 14 15 Ballistic Gun 8 | . 28 6 1 Peak Build Rating 32 | 6 11 20 32 Average Rating 16 | 4 7 17 20 On Entrance 8 | . 6 11 18 Avg Prop Armor Cover (%) . | . . . . Naked Turns . | . . . . Heaviest Build 61 | 13 29 34 61 Greatest Support 43 | 40 40 43 43 Greatest Overweight (x) 5 | . 1 2 5 Average Overweight (x) . | . . . 1 Largest Inventory Capacity 20 | 8 15 15 20 Average Capacity 15 | 6 14 15 19 Most Carried 14 | 5 8 14 14 Average Carried 8 | 1 3 9 9 Final Capacity 20 | 8 15 15 20 Final Carried 13 | 1 5 13 7 Class Distribution -------------------- 79% | Mutant 20% | Scavenger-Mutant Dominant Class ---------------- Mutant | -10/Materials Mutant | -9/Materials Mutant | -8/Materials Resources | -11 -10 -9 -8 ----------- Run | Yrd Mat Mat Mat Matter Collected 1725 | 212 270 729 514 Remotely . | . . . . Salvage Created 2741 | . 353 1415 973 Parts 183 | . 28 90 65 Haulers Intercepted 5 | . . 3 2 Recyclers Shooed 3 | . . 2 1 Parts Field Recycled . | . . . . Retrieved Matter . | . . . . Parts Self-Destructed . | . . . . Prevented . | . . . . Parts Restored . | . . . . Kills | -11 -10 -9 -8 ------- Run | Yrd Mat Mat Mat Combat Hostiles Destroyed 70 | . 9 33 28 Melee 1 | . . 1 . Guns 51 | . 9 30 12 AOE 14 | . . . 14 Classes Destroyed 10 | . 4 2 4 Worker 5 | . 1 2 2 Builder 5 | . . . 5 Tunneler 2 | . . . 2 Hauler 5 | . . 3 2 Recycler 1 | . . . 1 Watcher 8 | . 1 4 3 Swarmer 22 | . 3 13 6 Grunt 33 | . 6 10 17 Duelist 1 | . . . 1 Sentry 14 | . . 10 4 Best Kill Streak 17 | . 3 5 17 Combat Bots Only 7 | . 3 4 7 Max Kills in Single Turn 4 | . 2 2 4 Gunslinging 1 | . . 1 . Exploded 2 | . . . 2 Melee 1 | . . 1 . Uniques/NPCs Destroyed . | . . . . Combat | -11 -10 -9 -8 -------- Run | Yrd Mat Mat Mat Hostile Shots Fired 477 | . 45 173 259 Missed 132 | . 12 42 78 Hits 345 | . 33 131 181 Melee 1 | . . . 1 Projectile 344 | . 33 131 180 Critical Strikes 17 | . . 9 8 Damage Taken 4485 | . 387 1653 2445 Core 867 | . 80 232 555 Absorbed by Shields 123 | . . 71 52 Redirected to Shielding 72 | . 4 18 50 Core Remaining (%) 70 | 100 68 42 . Volleys Fired 241 | . 38 131 72 Largest 2 | . 2 2 2 Hottest 138 | . 40 112 138 Shots Fired 429 | . 76 226 127 Gun 405 | . 76 220 109 Cannon . | . . . . Launcher 24 | . . 6 18 Special . | . . . . Kinetic 211 | . 76 119 16 Thermal 160 | . . 67 93 Explosive 24 | . . 6 18 Electromagnetic 34 | . . 34 . Robot Hit Streak 17 | . 9 17 11 Robot Miss Streak 4 | . 4 4 3 Penetration Max . | . . . . Secondary Targets 7 | . 2 5 . Max Gunslinging Chain 1 | . 1 1 . Shots Hit Robots 295 | . 48 158 89 Core Hits 148 | . 20 63 65 Critical Kills . | . . . . Critical Parts Destroyed 4 | . 1 1 2 Critical Strikes 13 | . 1 6 6 Burn 9 | . . 5 4 Destroy 1 | . 1 . . Smash 3 | . . 1 2 Melee Attacks 22 | . . 8 14 Impact 22 | . . 8 14 Slashing . | . . . . Piercing . | . . . . Sneak Attacks 1 | . . 1 . Combat Hostiles . | . . . . Follow-up Attacks . | . . . . Damage Inflicted 7512 | . 490 2465 4557 Guns 3855 | . 490 2090 1275 Cannons . | . . . . Explosions 2902 | . . 95 2807 Melee 717 | . . 242 475 Ramming 38 | . . 38 . Kinetic 1729 | . 490 1070 169 Thermal 1815 | . . 709 1106 Explosive 2828 | . . 21 2807 Electromagnetic 385 | . . 385 . Impact 717 | . . 242 475 Slashing . | . . . . Piercing . | . . . . Highest Corruption 10 | . . 10 . Average Corruption 4 | . . 4 . Corruption Purged . | . . . . Corruption Blocked . | . . . . Effects 55 | . . 55 . Message Errors 18 | . . 18 . Matter Fused 13 | . . 13 . Heat Flow Errors 2 | . . 2 . Energy Discharges 6 | . . 6 . Data Loss (minor) 12 | . . 12 . Data Loss (major) 1 | . . 1 . Misfires 1 | . . 1 . Weapon Failures 2 | . . 2 . Overload Shots . | . . . . Overflow Damage 303 | . . 29 274 Projectiles . | . . . . Explosions 113 | . . 9 104 Melee 190 | . . 20 170 Knockbacks 6 | . . 4 2 Impact 6 | . . 4 2 Kinetic . | . . . . Secondary . | . . . . Self-Inflicted Damage 220 | . . 74 146 Shots 9 | . . 3 6 Rammed 5 | . . 5 . Targets Rammed 6 | . . 5 1 Kicked 1 | . . . 1 Crushed . | . . . . Highest Temperature 350 | . 20 305 350 Average Temperature 60 | . 9 42 89 Received Heat Transfer 1772 | . 174 629 969 Effects 1 | . . . 1 Matter Decay 1 | . . . 1 Siege Activations . | . . . . Martial Activations . | . . . . Shielding Activations . | . . . . Robots Disrupted . | . . . . Combat Hostiles . | . . . . Robots Corrupted 4 | . . 2 2 Combat Hostiles 3 | . . 1 2 Parts Fried 4 | . . 3 1 Impact Corruptions 8 | . . 2 6 Robots Melted 1 | . . 1 . Combat Hostiles 1 | . . 1 . Parts Melted 7 | . . 2 5 Heat Transferred 4564 | . . 1937 2627 Parts Sabotaged . | . . . . Parts Stolen . | . . . . Parts Stripped . | . . . . Power Chain Reactions 2 | . . 2 . Alert | -11 -10 -9 -8 ------- Run | Yrd Mat Mat Mat Maximum Alert Level 2 | . . 1 2 Low Security (%) 87 | 100 100 94 62 Level 1 10 | . . 5 27 Level 2 2 | . . . 9 Level 3 . | . . . . Level 4 . | . . . . Level 5 . | . . . . High Security . | . . . . Max Security . | . . . . Peak Influence 668 | . 113 239 668 Initial 97 | . . 18 97 Average 121 | . 35 126 171 Influence Increases 2446 | . 255 1011 1180 Destroy 0b10 Robot/C 1400 | . 180 660 560 Destroy 0b10 Robot/NC 130 | . 10 45 75 Destroy Leader 356 | . 32 194 130 Successful Hack 31 | . 18 9 4 Disable Machine 75 | . . 30 45 Anti-Garrison Action 150 | . . . 150 Destroy Structure 154 | . . 28 126 Lose Combat Pursuer 150 | . 15 45 90 Influence Decreases 1788 | . 209 826 753 Entered New Map 162 | . . 28 134 Time Decay 1376 | . 209 718 449 Lost Part 250 | . . 80 170 Squads Dispatched 12 | . 2 2 8 Investigation 3 | . 1 1 1 Extermination . | . . . . Reinforcement 6 | . 1 1 4 Assault 2 | . . . 2 Garrison 1 | . . . 1 Intercept . | . . . . Searches Triggered . | . . . . Construction Impeded 2 | . . . 2 Haulers Reinforced . | . . . . Active Scanning Responses . | . . . . Cargo Convoy Interrupts . | . . . . Stealth | -11 -10 -9 -8 --------- Run | Yrd Mat Mat Mat Distress Signals 7 | . 1 4 2 Communications Jammed . | . . . . Distress Signals . | . . . . Times Spotted 119 | . 17 53 49 Peak Tracking Total 12 | . 4 7 12 Tactical Retreats 9 | . 1 2 6 Traps | -11 -10 -9 -8 ------- Run | Yrd Mat Mat Mat Traps Triggered 11 | . 1 7 3 Indirectly . | . . . . Trap Hack Attempts . | . . . . Triggered . | . . . . Disarmed . | . . . . Reprogrammed . | . . . . Reused . | . . . . Traps Extracted . | . . . . Installed . | . . . . Triggered . | . . . . Machines | -11 -10 -9 -8 ---------- Run | Yrd Mat Mat Mat Machines Disabled 6 | . . 2 4 Max in Single Turn 1 | . . 1 1 Garrison Access 1 | . . . 1 Machines Repaired . | . . . . Machines Dismantled . | . . . . Machines Sabotaged . | . . . . Overloaded Fab Kills . | . . . . Hacking | -11 -10 -9 -8 --------- Run | Yrd Mat Mat Mat Machines Accessed 12 | . 4 5 3 Terminals 9 | . 3 4 2 Fabricators . | . . . . Repair Stations . | . . . . Recycling Units 1 | . 1 . . Scanalyzers 2 | . . 1 1 Garrison Access . | . . . . Total Hacks 35 | . 12 16 7 Successful 22 | . 7 10 5 Failed 12 | . 5 5 2 Catastrophic . | . . . . Database Lockouts 1 | . . 1 . Manual . | . . . . Terminals 25 | . 11 10 4 Fabricators . | . . . . Repair Stations . | . . . . Recycling Units 1 | . 1 . . Scanalyzers 9 | . . 6 3 Garrison Access . | . . . . Terminal Hacks 13 | . 6 4 3 Record 3 | . 1 1 1 Prototype ID Bank 4 | . 3 . 1 Alert Level 2 | . . 2 . Locate Traps 1 | . . . 1 Maintenance Status 1 | . 1 . . Zone Layout 2 | . 1 1 . Fabricator Hacks . | . . . . Repair Station Hacks . | . . . . Recycling Unit Hacks 1 | . 1 . . Process 1 | . 1 . . Scanalyzer 8 | . . 6 2 Retrieve Study 8 | . . 6 2 Garrison Access Hacks . | . . . . Unauthorized Hacks . | . . . . Terminals . | . . . . Fabricators . | . . . . Repair Stations . | . . . . Recycling Units . | . . . . Scanalyzers . | . . . . Garrison Access . | . . . . Data Cores Recovered . | . . . . Used . | . . . . Hacking Detections 10 | . 3 5 2 Full Trace Events 1 | . . . 1 Feedback Events . | . . . . Feedback Blocked . | . . . . Robot Schematics Acquired . | . . . . Robots Built . | . . . . Authchips . | . . . . Time . | . . . . Total Robot Build Rating . | . . . . Part Schematics Acquired . | . . . . Parts Built . | . . . . Authchips . | . . . . Time . | . . . . Total Part Build Rating . | . . . . Part Studies Acquired 7 | . . 5 2 Parts Repaired . | . . . . Time . | . . . . Parts Recycled . | . . . . Recycled Matter 85 | . 85 . . Retrieved Matter . | . . . . Retrieved Components . | . . . . Parts Scanalyzed . | . . . . Part Schematics Acquired . | . . . . Parts Damaged . | . . . . Bothacking | -11 -10 -9 -8 ------------ Run | Yrd Mat Mat Mat Used RIF Installer . | . . . . Robots Hacked . | . . . . Non-combat . | . . . . Combat . | . . . . Robot Hacks Applied . | . . . . Relay Couplers Released 2 | . . . 2 Machine Destruction 2 | . . . 2 Fabnet Peak Effective % . | . . . . Robots Rewired . | . . . . Allies Hacked . | . . . . Hacks Repelled . | . . . . Allies | -11 -10 -9 -8 -------- Run | Yrd Mat Mat Mat Total Allies . | . . . . Largest Group . | . . . . Highest-Rated Group . | . . . . Highest-Rated Ally . | . . . . Total Orders . | . . . . Ally Attacks . | . . . . Total Damage . | . . . . Kills . | . . . . Allies Corrupted . | . . . . Allies Melted . | . . . . Intel | -11 -10 -9 -8 ------- Run | Yrd Mat Mat Mat Active Infowar (turns) 4891 | . . 3359 1532 Optics 4891 | . . 3359 1532 Traps 469 | . . . 469 Robot Analysis Total . | . . . . Derelict Logs Recovered . | . . . . Drone Launches . | . . . . Drone Recoveries . | . . . . Exploration | -11 -10 -9 -8 ------------- Run | Yrd Mat Mat Mat Turns Passed 5961 | 79 991 3359 1532 Spaces Moved 2936 | 50 567 1820 499 Core 12 | 12 . . . Treads 2023 | 38 351 1372 262 Legs 237 | . . . 237 Wheels 664 | . 216 448 . Hover . | . . . . Flight . | . . . . Fastest Speed 50 | 50 105 105 160 Average Speed 156 | 133 139 147 209 Slowest Speed 470 | 160 160 160 470 Overloaded Moves . | . . . . Propulsion Burnouts . | . . . . Robots Hopped . | . . . . Potential Cave-ins 3 | . . 3 . Cave-ins Triggered . | . . . . Exploration Rate (%) 56 | 4 80 96 44 Regions Visited 3 Branch Regions . Pre-discovered Areas . | . . . . Known Exits Taken 2 | . 1 1 . Unknown Exits Taken 1 | 1 . . . Scrap Searched . | . . . . Spaces Dug 47 | . . 47 . Terrain Destroyed 217 | . . 57 160 Melee . | . . . . Projectile . | . . . . AOE 217 | . . 57 160 Terrain Rammed . | . . . . Walls Destroyed . | . . . . Machines Disabled . | . . . . Actions | -11 -10 -9 -8 --------- Run | Yrd Mat Mat Mat Total 3873 | 62 702 2262 847 Wait 449 | . 75 203 171 Move 2933 | 49 566 1819 499 Hop . | . . . . Pick Up 75 | 7 10 34 24 Fast Attach . | . . . . Attach 66 | 6 4 21 35 Detach 24 | . 1 10 13 Swap 21 | . 3 14 4 Drop 36 | . 5 17 14 Fire 241 | . 38 131 72 Melee 22 | . . 8 14 Ram . | . . . . Kick 1 | . . . 1 Crush 5 | . . 5 . Escape Stasis . | . . . . Rewire . | . . . . Trap . | . . . . Miscellaneous . | . . . . Route ------- -11/Scrapyard -10/Materials (discovered 6 exits: *Mat x3 / *Min x2 / *Sub) -9/Materials (discovered 7 exits: *Mat x3 / *Min x2 / *Sto x2) -8/Materials History --------- Turn | Location | Event 21 | -11/Scrapyard | Discovered new exit (range 15) 80 | -11/Scrapyard | Entered Materials 223 | -10/Materials | Discovered new exit (range 13) 307 | -10/Materials | Discovered new exit (range 15) 313 | -10/Materials | Build established: Mutant 468 | -10/Materials | Discovered new exit (range 3) 706 | -10/Materials | Discovered new exit (range 10) 812 | -10/Materials | Identified exit to Materials 829 | -10/Materials | Discovered new exit (range 10) 840 | -10/Materials | Identified exit to Subcaves 904 | -10/Materials | Identified exit to Mines 989 | -10/Materials | Discovered exit to Mines (range 11) 1071 | -10/Materials | Entered another Materials area 1071 | -9/Materials | Evolved 2 slots: Utility x2 1463 | -9/Materials | Discovered new exit (range 17) 1537 | -9/Materials | Discovered new exit (range 11) 1546 | -9/Materials | Identified exit to Materials 1854 | -9/Materials | Discovered new exit (range 4) 1943 | -9/Materials | Identified exit to Storage 2229 | -9/Materials | Build established: Scavenger-Mutant 2229 | -9/Materials | Discovered new exit (range 16) 2303 | -9/Materials | Identified exit to Mines 2350 | -9/Materials | Core integrity fell below 50% 2519 | -9/Materials | Discovered exit to Materials (range 13) 2751 | -9/Materials | Build established: Mutant 2841 | -9/Materials | Discovered exit to Materials (range 17) 3277 | -9/Materials | Discovered exit to Storage (range 6) 4116 | -9/Materials | System corruption reached 10% 4134 | -9/Materials | Central database locked down 4430 | -9/Materials | Entered another Materials area 4430 | -8/Materials | Evolved 2 slots: Utility x2 5217 | -8/Materials | Lost 3 parts (1n2w) 5805 | -8/Materials | Core integrity fell below 50% 5805 | -8/Materials | Garrison activated, responded to threat 5846 | -8/Materials | Destroyed 7 combat bots 5944 | -8/Materials | Core integrity fell below 20% 5962 | -8/Materials | Destroyed by S-10 Pest with Light Assault Rifle Last Messages --------------- 05951_ K-01 Serf collects debris. 05952_ ALERT: Garrison Access compromised, dispatching multiple assault carriers. 05952_ Relay Coupler [Hunter] tumbles out of Garrison Access. 05952_ Relay Coupler [Swarmer] tumbles out of Garrison Access. 05952_ U-05 Engineer lays Concrete. 05953_ U-05 Engineer builds a Wall. 05954_ S-10 Pest destroyed. 05954_ U-05 Engineer lays Concrete. 05954_ K-01 Serf collects debris. 05956_ Destroyed Unknown Flight Unit. 05956_ R-06 Scavenger collects Unknown Flight Unit. 05958_ K-01 Serf collects debris. 05960_ U-05 Engineer builds a Wall. 05960_ R-06 Scavenger collects Imp. Heat Sink. 05961_ K-01 Serf collects debris. 05961_ Hvy. Laser destroyed. 05961_ K-01 Serf collects debris. 05962_ Destroyed Unknown Flight Unit. 05962_ S-10 Pest system corrupted by crushing effect. Map ----- +----------------------------------------------------+ | ?????????????????????????????????????????????????? | | ?????????????????????????????????????????????????? | | ?????????????????????????????????????????????????? | | ?????????????????????????????????????????????????? | | ?????????????????????????????????????????????????? | | ?????????????????????????????????????????????????? | | ?????????????????????????????????????????????????? | | ?????????????????????????????????????????????????? | | ????????????????????????? ?????????????????????? | | ????????????????????????? ?????????????????????? | | ????????????????????????? #????????????????????? | | ????????????????????????? #????? ??????????????? | | ????????????????????????? #???? !??????????????? | | ?????????????#+####?????? #???! ??????????????? | | ????????????? ?????? #??? ???????????????? | | ?????????????? ????? #?? ????????????????? | | ??????????????? ##### ###+#### ????????????? | | ???????????????? r?????????????? | | ????????????????? #?????????????? | | ?????????????????? ! [a o#?????????????? | | ???????????????????# [[ ???????????????? | | ???????????????????# ??????????????? | | ???????????????????# !rs "?????????????? | | ?????????????????### "g" %""" T"????????????? | | ???????????????# # "G!% """ ""????????????? | | ???????????????# # """@k""" ""#???????????? | | ???????????????# # k #?????????????? | | ??????????#????# # s #?????????????? | | ??????????# ???# #r r###########?????????????? | | ??????????# ??# # #???????????????????????? | | ??????????# ## # ##??????????????????????? | | ?????????## ## ## ############# ????????? | | ??????? =% ???????? | | ??????? ???????? | | ??????? uuu ???????? | | ???????##########% ####+#############+#?????????? | | ????????????## # #????????????????? | | ????????????# # # " """ #????????????????? | | ????????????# # [ [ """ #????????????????? | | ????????????# # % " """ #????????????????? | | ????????????# # " """ #????????????????? | | ????????????# # """ """ #????????????????? | | ???########### # # #????????????????? | | ???? # ##########????????????????? | | ??# """ "" # # #?????????????????????? | | ??#???? """ "" / # #?????????????????????? | | ??# ????""" """ # | # #?????????????????????? | | ??# ? # #?????????????????????? | | ??# # # #?????????????????????? | | ??#+###### ###### #= # #?????????????????????? | +----------------------------------------------------+ Best States ------------- Heat Dissipation 31 Energy Generation 15 Energy Capacity 265 Matter Stores 300 Matter Capacity 300 Sight Range 18 Terrain Scan Density 10 Armor Coverage 150 Core Shielding 20 Evasion (%) 50 Recoil Reduction 2 Item Schematics ----------------- None Robot Schematics ------------------ None Fabricated ------------ Nothing Repaired ---------- Nothing Studied --------- Hvy. Assault Rifle | -9/Materials | Hacked Beam Rifle | -9/Materials | Hacked Mni. Grenade Launcher | -9/Materials | Hacked Rocket Launcher | -9/Materials | Hacked Lgt. Treads | -9/Materials | Hacked Imp. Grenade Launcher | -8/Materials | Hacked Lgt. Nuclear Core | -8/Materials | Hacked Alien Tech Used ----------------- None Achievements -------------- None Challenges ------------ None Game ------ Seed CommChipLink Manual? 0 Play Time 00:32:52 Cumulative 16.1 hours Start 2025.11.22 @ 02:13:13 End 2025.11.22 @ 02:46:54 Sessions 1 Manual Loads 0 Difficulty Rogue Special Mode None Game No. 7 Rogue 3 Adventurer 4 Explorer 0 Win Type - Total 0 Types 0/0/0/0/0/0/0/0/0/0 Lore% 0 Gallery% 14 Achievement% 12 Wizard Run 0 Options --------- Layout 0 ASCII 0 Keyboard 0 Movement Mouse Keybinds 0 Fullscreen 1 Font 24/Smallcaps Map View 76x50 Zoom Use 0% Tactical HUD 1 Map Filters NONE Filters NONE Steam 0 RUN: 9624f569-b54e-41d6-aeab-084df456ac4a